[Event "Early-Titled-Tuesday-Blitz-February-27-2024"]
[Site "Chess.com"]
[Date "2024.02.27"]
[Round "7"]
[White "ajedrezsinlimites"]
[Black "LangesNasenhaar"]
[Result "1/2-1/2"]
[WhiteElo "2559"]
[BlackElo "2403"]
[TimeControl "180+1"]
[EndTime "9:17:05 PST"]
[Termination "Game drawn - insufficient material"]

1. e4 {[%clk 0:03:00.6]} 1... g6 {[%clk 0:03:00]} 2. d4 {[%clk 0:03:00.5]} 2...
Bg7 {[%clk 0:03:00.5]} 3. Nc3 {[%clk 0:03:01]} 3... c6 {[%clk 0:03:01.1]} 4. f3
{[%clk 0:03:01.2]} 4... d5 {[%clk 0:03:00.9]} 5. e5 {[%clk 0:03:01.4]} 5... Qb6
{[%clk 0:02:59.6]} 6. a3 {[%clk 0:02:57.8]} 6... f6 {[%clk 0:02:57.7]} 7. f4
{[%clk 0:02:57.1]} 7... Nh6 {[%clk 0:02:57.3]} 8. h3 {[%clk 0:02:56.3]} 8... Nf5
{[%clk 0:02:52.3]} 9. Nf3 {[%clk 0:02:55.4]} 9... Ng3 {[%clk 0:02:51.6]} 10. Rg1
{[%clk 0:02:54.2]} 10... Bf5 {[%clk 0:02:44.2]} 11. Bd3 {[%clk 0:02:51]} 11...
Ne4 {[%clk 0:02:32.4]} 12. g4 {[%clk 0:02:50.8]} 12... Nxc3 {[%clk 0:02:29.8]}
13. bxc3 {[%clk 0:02:49]} 13... Bxd3 {[%clk 0:02:24.4]} 14. Qxd3 {[%clk
0:02:46.1]} 14... fxe5 {[%clk 0:02:17.2]} 15. Nxe5 {[%clk 0:02:38.8]} 15... Bxe5
{[%clk 0:02:12]} 16. fxe5 {[%clk 0:02:38.6]} 16... O-O {[%clk 0:01:56.6]} 17.
Bh6 {[%clk 0:02:32.9]} 17... Rf7 {[%clk 0:01:56.3]} 18. Rf1 {[%clk 0:02:31.6]}
18... Rxf1+ {[%clk 0:01:45.1]} 19. Kxf1 {[%clk 0:02:31.6]} 19... Nd7 {[%clk
0:01:45.2]} 20. Kg2 {[%clk 0:02:31.8]} 20... c5 {[%clk 0:01:30.1]} 21. Rf1
{[%clk 0:02:26.4]} 21... c4 {[%clk 0:01:20]} 22. Qf3 {[%clk 0:02:25.9]} 22...
Qe6 {[%clk 0:01:18.3]} 23. h4 {[%clk 0:02:25.9]} 23... b5 {[%clk 0:01:11.6]} 24.
Qf4 {[%clk 0:02:24.5]} 24... a5 {[%clk 0:01:06.6]} 25. h5 {[%clk 0:02:23.3]}
25... Kh8 {[%clk 0:00:49.5]} 26. hxg6 {[%clk 0:02:15.5]} 26... Qxg6 {[%clk
0:00:48.8]} 27. Kg3 {[%clk 0:02:08.7]} 27... Rg8 {[%clk 0:00:32]} 28. Rf3 {[%clk
0:02:05.7]} 28... Qxc2 {[%clk 0:00:15.1]} 29. g5 {[%clk 0:02:04.7]} 29... Qg6
{[%clk 0:00:14]} 30. Kh4 {[%clk 0:02:04.5]} 30... b4 {[%clk 0:00:11.8]} 31. axb4
{[%clk 0:02:01]} 31... axb4 {[%clk 0:00:12.7]} 32. cxb4 {[%clk 0:02:01.4]} 32...
Nb6 {[%clk 0:00:08.6]} 33. Ra3 {[%clk 0:01:53.8]} 33... Qb1 {[%clk 0:00:06.1]}
34. Qf7 {[%clk 0:01:40.6]} 34... Qh1+ {[%clk 0:00:05.3]} 35. Rh3 {[%clk
0:01:37.2]} 35... Qe1+ {[%clk 0:00:05.3]} 36. Rg3 {[%clk 0:01:35.1]} 36... Qe4+
{[%clk 0:00:04.5]} 37. Kh5 {[%clk 0:01:33.9]} 37... Qg6+ {[%clk 0:00:03.8]} 38.
Qxg6 {[%clk 0:01:33.6]} 38... hxg6+ {[%clk 0:00:04]} 39. Kg4 {[%clk 0:01:33.8]}
39... Rc8 {[%clk 0:00:03.9]} 40. Rc3 {[%clk 0:01:22.8]} 40... Na4 {[%clk
0:00:03.7]} 41. Ra3 {[%clk 0:01:23.1]} 41... c3 {[%clk 0:00:04.4]} 42. Rxa4
{[%clk 0:01:23.6]} 42... c2 {[%clk 0:00:05.1]} 43. Ra1 {[%clk 0:01:24.2]} 43...
c1=Q {[%clk 0:00:04.9]} 44. Rxc1 {[%clk 0:01:24.7]} 44... Rxc1 {[%clk
0:00:05.3]} 45. Kf4 {[%clk 0:01:25.5]} 45... e6 {[%clk 0:00:05.2]} 46. Bf8
{[%clk 0:01:24.9]} 46... Rb1 {[%clk 0:00:03.5]} 47. Ke3 {[%clk 0:01:24.2]} 47...
Kg8 {[%clk 0:00:04.2]} 48. Bc5 {[%clk 0:01:24.2]} 48... Kf7 {[%clk 0:00:04.6]}
49. Kd3 {[%clk 0:01:24.6]} 49... Ke8 {[%clk 0:00:05.1]} 50. Kc2 {[%clk
0:01:24.6]} 50... Rg1 {[%clk 0:00:04.8]} 51. b5 {[%clk 0:01:24.7]} 51... Kd7
{[%clk 0:00:05.3]} 52. Kc3 {[%clk 0:01:24.8]} 52... Rxg5 {[%clk 0:00:04.5]} 53.
Kb4 {[%clk 0:01:24.6]} 53... Kc8 {[%clk 0:00:04.9]} 54. Ka5 {[%clk 0:01:23.9]}
54... Kb7 {[%clk 0:00:04.6]} 55. Kb4 {[%clk 0:01:23.7]} 55... Rg1 {[%clk
0:00:05.1]} 56. Be7 {[%clk 0:01:23.4]} 56... g5 {[%clk 0:00:05.1]} 57. Kc5
{[%clk 0:01:23.4]} 57... g4 {[%clk 0:00:05.6]} 58. Kd6 {[%clk 0:01:24.3]} 58...
g3 {[%clk 0:00:06.3]} 59. Bh4 {[%clk 0:01:23.6]} 59... g2 {[%clk 0:00:06.4]} 60.
Bf2 {[%clk 0:01:23.7]} 60... Rf1 {[%clk 0:00:06.7]} 61. Be3 {[%clk 0:01:23.9]}
61... Rf3 {[%clk 0:00:06.7]} 62. Bg1 {[%clk 0:01:24.1]} 62... Rf1 {[%clk
0:00:06.9]} 63. Be3 {[%clk 0:01:24.2]} 63... g1=Q {[%clk 0:00:06.9]} 64. Bxg1
{[%clk 0:01:24.3]} 64... Rxg1 {[%clk 0:00:07.8]} 65. Kxe6 {[%clk 0:01:25]} 65...
Kb6 {[%clk 0:00:07.8]} 66. Kxd5 {[%clk 0:01:25.2]} 66... Kxb5 {[%clk 0:00:08.7]}
67. e6 {[%clk 0:01:25.5]} 67... Kb6 {[%clk 0:00:06.8]} 68. Kd6 {[%clk
0:01:25.3]} 68... Re1 {[%clk 0:00:06.4]} 69. e7 {[%clk 0:01:21.5]} 69... Kb7
{[%clk 0:00:03.9]} 70. Kd7 {[%clk 0:01:19.6]} 70... Kb6 {[%clk 0:00:04.2]} 71.
d5 {[%clk 0:01:18.4]} 71... Kc5 {[%clk 0:00:04.6]} 72. d6 {[%clk 0:01:18.8]}
72... Re2 {[%clk 0:00:04.7]} 73. Kc7 {[%clk 0:01:16.8]} 73... Re3 {[%clk
0:00:04.2]} 74. Kd7 {[%clk 0:01:16.6]} 74... Re2 {[%clk 0:00:04.2]} 75. Kc7
{[%clk 0:01:16.3]} 75... Re3 {[%clk 0:00:04.4]} 76. d7 {[%clk 0:01:16.2]} 76...
Rxe7 {[%clk 0:00:04.1]} 77. Kc8 {[%clk 0:01:17.1]} 77... Rxd7 {[%clk 0:00:04.2]}
78. Kxd7 {[%clk 0:01:18]} 1/2-1/2

[Event "Early-Titled-Tuesday-Blitz-February-27-2024"]
[Site "Chess.com"]
[Date "2024.02.27"]
[Round "7"]
[White "Skatchkov_V"]
[Black "Fandorine"]
[Result "1-0"]
[WhiteElo "2669"]
[BlackElo "2886"]
[TimeControl "180+1"]
[EndTime "9:17:06 PST"]
[Termination "Skatchkov_V won by resignation"]

1. d4 {[%clk 0:03:00.4]} 1... Nf6 {[%clk 0:02:59.7]} 2. c4 {[%clk 0:03:00.3]}
2... g6 {[%clk 0:02:56.8]} 3. Nc3 {[%clk 0:03:00.1]} 3... Bg7 {[%clk 0:02:57.2]}
4. e4 {[%clk 0:02:59.7]} 4... d6 {[%clk 0:02:57.7]} 5. h3 {[%clk 0:03:00]} 5...
O-O {[%clk 0:02:56.8]} 6. Bg5 {[%clk 0:02:59.9]} 6... c5 {[%clk 0:02:52.3]} 7.
d5 {[%clk 0:03:00.2]} 7... e6 {[%clk 0:02:50.2]} 8. Bd3 {[%clk 0:03:00]} 8... h6
{[%clk 0:02:47.5]} 9. Be3 {[%clk 0:02:59.5]} 9... Re8 {[%clk 0:02:46.3]} 10. Qd2
{[%clk 0:02:56.3]} 10... Kh7 {[%clk 0:02:45.2]} 11. Nf3 {[%clk 0:02:56.3]} 11...
Na6 {[%clk 0:02:41]} 12. O-O {[%clk 0:02:54.6]} 12... Nc7 {[%clk 0:02:41.2]} 13.
e5 {[%clk 0:02:35.4]} 13... dxe5 {[%clk 0:02:38.4]} 14. d6 {[%clk 0:02:33.5]}
14... e4 {[%clk 0:02:18.9]} 15. Nxe4 {[%clk 0:01:59.5]} 15... Nxe4 {[%clk
0:02:11.8]} 16. Bxe4 {[%clk 0:01:56.8]} 16... Na6 {[%clk 0:02:10.7]} 17. d7
{[%clk 0:01:39.5]} 17... Qxd7 {[%clk 0:01:29.8]} 18. Qxd7 {[%clk 0:01:38.9]}
18... Bxd7 {[%clk 0:01:30.7]} 19. Bxb7 {[%clk 0:01:38.6]} 19... Nb4 {[%clk
0:01:31.6]} 20. Bxa8 {[%clk 0:01:35.7]} 20... Rxa8 {[%clk 0:01:32.5]} 21. Bxc5
{[%clk 0:01:32]} 21... a5 {[%clk 0:01:10.8]} 22. a3 {[%clk 0:01:20.7]} 22... Nd3
{[%clk 0:01:07]} 23. Bd4 {[%clk 0:01:20.8]} 23... e5 {[%clk 0:01:00.2]} 24. Bc3
{[%clk 0:01:20.8]} 24... a4 {[%clk 0:00:35.3]} 25. Rad1 {[%clk 0:01:17.4]} 25...
e4 {[%clk 0:00:35]} 26. Bxg7 {[%clk 0:00:53.5]} 26... Kxg7 {[%clk 0:00:35.9]}
27. Ne1 {[%clk 0:00:53.5]} 27... Be6 {[%clk 0:00:28.3]} 28. Nxd3 {[%clk
0:00:34]} 28... exd3 {[%clk 0:00:29.2]} 29. c5 {[%clk 0:00:33.9]} 29... Bc4
{[%clk 0:00:22]} 30. Rd2 {[%clk 0:00:28.3]} 30... Rc8 {[%clk 0:00:20.9]} 31. Rc1
{[%clk 0:00:28.4]} 31... Ba6 {[%clk 0:00:14.7]} 32. c6 {[%clk 0:00:25.1]} 32...
Rc7 {[%clk 0:00:15.3]} 33. f4 {[%clk 0:00:16.7]} 33... Kf6 {[%clk 0:00:14.8]}
34. Kf2 {[%clk 0:00:16.7]} 34... Ke6 {[%clk 0:00:14.5]} 35. Ke3 {[%clk
0:00:16.9]} 35... Kd5 {[%clk 0:00:12.4]} 36. Rxd3+ {[%clk 0:00:14.4]} 36... Bxd3
{[%clk 0:00:11.3]} 37. Kxd3 {[%clk 0:00:15.3]} 37... Kd6 {[%clk 0:00:11.7]} 38.
Rc4 {[%clk 0:00:13.5]} 38... Kd5 {[%clk 0:00:11.6]} 39. Kc3 {[%clk 0:00:13.1]}
39... g5 {[%clk 0:00:10.6]} 40. fxg5 {[%clk 0:00:11.5]} 40... hxg5 {[%clk
0:00:11.5]} 41. g4 {[%clk 0:00:11.1]} 41... f6 {[%clk 0:00:11.4]} 42. Kb4 {[%clk
0:00:10.8]} 42... Rxc6 {[%clk 0:00:03.1]} 43. Rxc6 {[%clk 0:00:10.6]} 43... Kxc6
{[%clk 0:00:04]} 1-0

[Event "Early-Titled-Tuesday-Blitz-February-27-2024"]
[Site "Chess.com"]
[Date "2024.02.27"]
[Round "7"]
[White "Szparu"]
[Black "jcibarra"]
[Result "1-0"]
[WhiteElo "2793"]
[BlackElo "2940"]
[TimeControl "180+1"]
[EndTime "9:17:08 PST"]
[Termination "Szparu won by resignation"]

1. e4 {[%clk 0:03:00.9]} 1... c5 {[%clk 0:02:59.4]} 2. d4 {[%clk 0:03:00.4]}
2... cxd4 {[%clk 0:02:59.2]} 3. c3 {[%clk 0:03:01.2]} 3... Nf6 {[%clk
0:02:58.4]} 4. e5 {[%clk 0:03:01.2]} 4... Nd5 {[%clk 0:02:58.5]} 5. Nf3 {[%clk
0:03:01.7]} 5... Nc6 {[%clk 0:02:57.5]} 6. Bc4 {[%clk 0:03:01.2]} 6... Nb6
{[%clk 0:02:57.5]} 7. Bb3 {[%clk 0:03:01.8]} 7... g6 {[%clk 0:02:57.9]} 8. Ng5
{[%clk 0:02:58.3]} 8... d5 {[%clk 0:02:57.9]} 9. exd6 {[%clk 0:02:56.9]} 9... e6
{[%clk 0:02:58.2]} 10. O-O {[%clk 0:02:55.4]} 10... Bxd6 {[%clk 0:02:51.5]} 11.
cxd4 {[%clk 0:02:50]} 11... Nxd4 {[%clk 0:02:49.5]} 12. Ne4 {[%clk 0:02:41.2]}
12... Be7 {[%clk 0:02:16.4]} 13. Bh6 {[%clk 0:02:38.6]} 13... f5 {[%clk
0:01:38.5]} 14. Ned2 {[%clk 0:02:38.9]} 14... Bf6 {[%clk 0:01:32.4]} 15. Nc3
{[%clk 0:02:38.7]} 15... Kf7 {[%clk 0:01:31.8]} 16. Nf3 {[%clk 0:02:39.2]} 16...
Re8 {[%clk 0:01:17.4]} 17. Nxd4 {[%clk 0:02:31.6]} 17... Bxd4 {[%clk 0:01:16.3]}
18. Qd2 {[%clk 0:02:23]} 18... Bf6 {[%clk 0:01:08.4]} 19. Qe2 {[%clk 0:02:18.6]}
19... Bd7 {[%clk 0:01:08.4]} 20. Rad1 {[%clk 0:02:16]} 20... Qe7 {[%clk
0:01:07.5]} 21. Rfe1 {[%clk 0:02:14.5]} 21... Rad8 {[%clk 0:01:03.6]} 22. g4
{[%clk 0:02:06.5]} 22... Bg5 {[%clk 0:01:02.1]} 23. gxf5 {[%clk 0:01:54.3]}
23... Bxh6 {[%clk 0:00:37.7]} 24. fxe6+ {[%clk 0:01:53.9]} 24... Bxe6 {[%clk
0:00:37.5]} 25. Qf3+ {[%clk 0:01:23.3]} 25... Kg7 {[%clk 0:00:30.8]} 26. Rxe6
{[%clk 0:01:07.7]} 26... Rxd1+ {[%clk 0:00:29.9]} 27. Nxd1 {[%clk 0:01:02.9]}
27... Qg5+ {[%clk 0:00:30]} 28. Kh1 {[%clk 0:00:59.9]} 28... Rxe6 {[%clk
0:00:30.6]} 29. Bxe6 {[%clk 0:00:59.3]} 29... Qe7 {[%clk 0:00:31.2]} 30. Bb3
{[%clk 0:00:55]} 30... Bg5 {[%clk 0:00:28.1]} 31. Nc3 {[%clk 0:00:47.7]} 31...
Bf6 {[%clk 0:00:24.9]} 32. a4 {[%clk 0:00:43.4]} 32... a5 {[%clk 0:00:18.7]} 33.
Kg2 {[%clk 0:00:31.5]} 33... h5 {[%clk 0:00:19.1]} 34. Bc2 {[%clk 0:00:30.5]}
34... Nc4 {[%clk 0:00:11.6]} 35. Nd5 {[%clk 0:00:27.1]} 35... Ne5 {[%clk
0:00:03.6]} 36. Qe4 {[%clk 0:00:20.8]} 36... Qd6 {[%clk 0:00:03.8]} 37. f4
{[%clk 0:00:20.4]} 37... Ng4 {[%clk 0:00:02.1]} 38. Qxg6+ {[%clk 0:00:20.3]}
38... Kf8 {[%clk 0:00:02.8]} 39. Bb3 {[%clk 0:00:17.2]} 39... Be7 {[%clk
0:00:02.8]} 40. Qxh5 {[%clk 0:00:12.4]} 40... Nh6 {[%clk 0:00:03.4]} 41. Qe5
{[%clk 0:00:07.1]} 41... Qxe5 {[%clk 0:00:01.8]} 42. fxe5 {[%clk 0:00:08]} 42...
Bc5 {[%clk 0:00:02.3]} 43. Kf3 {[%clk 0:00:08.1]} 43... Nf5 {[%clk 0:00:02.9]}
44. Ke4 {[%clk 0:00:08.3]} 44... Nd4 {[%clk 0:00:03.6]} 45. Bc4 {[%clk
0:00:08.6]} 45... Ne6 {[%clk 0:00:03.7]} 46. Nf6 {[%clk 0:00:06.3]} 46... Ng5+
{[%clk 0:00:03.9]} 47. Kf5 {[%clk 0:00:06.8]} 47... Nf3 {[%clk 0:00:04.6]} 48.
Nd7+ {[%clk 0:00:07.3]} 48... Ke7 {[%clk 0:00:04.2]} 49. Nxc5 {[%clk 0:00:08.2]}
49... Nxh2 {[%clk 0:00:04.1]} 50. Nxb7 {[%clk 0:00:08.2]} 50... Nf3 {[%clk
0:00:04.8]} 51. Nxa5 {[%clk 0:00:08.7]} 51... Nd4+ {[%clk 0:00:04.5]} 52. Ke4
{[%clk 0:00:09.2]} 1-0

[Event "Early-Titled-Tuesday-Blitz-February-27-2024"]
[Site "Chess.com"]
[Date "2024.02.27"]
[Round "7"]
[White "ChessboArt"]
[Black "Kotofeyca"]
[Result "0-1"]
[WhiteElo "2260"]
[BlackElo "2433"]
[TimeControl "180+1"]
[EndTime "9:17:10 PST"]
[Termination "Kotofeyca won by resignation"]

1. Nf3 {[%clk 0:02:54.8]} 1... d5 {[%clk 0:03:00]} 2. g3 {[%clk 0:02:54.8]} 2...
c6 {[%clk 0:03:00.4]} 3. Bg2 {[%clk 0:02:55.3]} 3... Bg4 {[%clk 0:03:00.8]} 4.
b3 {[%clk 0:02:55.9]} 4... Nd7 {[%clk 0:02:59.6]} 5. Bb2 {[%clk 0:02:56.2]} 5...
f6 {[%clk 0:02:59.3]} 6. O-O {[%clk 0:02:56.8]} 6... e5 {[%clk 0:02:59.4]} 7. d3
{[%clk 0:02:57.4]} 7... Bc5 {[%clk 0:02:56.5]} 8. Nbd2 {[%clk 0:02:57.8]} 8...
Ne7 {[%clk 0:02:56.1]} 9. h3 {[%clk 0:02:57.8]} 9... Bh5 {[%clk 0:02:55.8]} 10.
a3 {[%clk 0:02:57.1]} 10... O-O {[%clk 0:02:55]} 11. c4 {[%clk 0:02:57.2]} 11...
Re8 {[%clk 0:02:45.7]} 12. Rc1 {[%clk 0:02:54.5]} 12... a5 {[%clk 0:02:39.4]}
13. Kh2 {[%clk 0:02:44.9]} 13... Qb6 {[%clk 0:02:32.2]} 14. e3 {[%clk
0:02:38.6]} 14... Rad8 {[%clk 0:02:22.2]} 15. d4 {[%clk 0:02:34.3]} 15... e4
{[%clk 0:01:15.6]} 16. dxc5 {[%clk 0:02:28.5]} 16... Qxc5 {[%clk 0:01:14.7]} 17.
cxd5 {[%clk 0:01:58.9]} 17... Qxd5 {[%clk 0:01:14.7]} 18. g4 {[%clk 0:00:49.5]}
18... exf3 {[%clk 0:01:13.6]} 19. Bxf3 {[%clk 0:00:50.1]} 19... Qd6+ {[%clk
0:01:11.5]} 20. Kg2 {[%clk 0:00:50.7]} 20... Ne5 {[%clk 0:00:35.9]} 21. Ne4
{[%clk 0:00:34.9]} 21... Qxd1 {[%clk 0:00:34.1]} 22. Bxd1 {[%clk 0:00:30.2]}
22... Nd3 {[%clk 0:00:23.3]} 23. gxh5 {[%clk 0:00:27.2]} 23... Nxb2 {[%clk
0:00:21.4]} 24. Be2 {[%clk 0:00:27.5]} 24... Nd3 {[%clk 0:00:20.1]} 25. Rc3
{[%clk 0:00:26.4]} 25... Ne5 {[%clk 0:00:19.1]} 26. f4 {[%clk 0:00:26.6]} 26...
Nf7 {[%clk 0:00:17.5]} 27. Nc5 {[%clk 0:00:25.6]} 27... Nd5 {[%clk 0:00:16.4]}
28. Rc2 {[%clk 0:00:23.6]} 28... Nxe3+ {[%clk 0:00:16.4]} 29. Kf2 {[%clk
0:00:23.2]} 29... Nxc2 {[%clk 0:00:17.3]} 30. Nxb7 {[%clk 0:00:23.4]} 30... Rb8
{[%clk 0:00:16.2]} 31. Nxa5 {[%clk 0:00:23]} 31... Nd4 {[%clk 0:00:14.3]} 32.
Bc4 {[%clk 0:00:22.3]} 32... Kf8 {[%clk 0:00:13.3]} 33. Rd1 {[%clk 0:00:22.3]}
33... c5 {[%clk 0:00:13.2]} 34. b4 {[%clk 0:00:21]} 34... Nc2 {[%clk 0:00:11.1]}
35. bxc5 {[%clk 0:00:20]} 35... Rb2 {[%clk 0:00:11.1]} 36. Kg3 {[%clk
0:00:19.9]} 36... Ne3 {[%clk 0:00:10.2]} 37. Rd3 {[%clk 0:00:15.7]} 37... Nf5+
{[%clk 0:00:09.1]} 38. Kf3 {[%clk 0:00:15.9]} 38... Nh4+ {[%clk 0:00:07.5]} 39.
Kg3 {[%clk 0:00:16.3]} 39... Nf5+ {[%clk 0:00:07.6]} 40. Kf3 {[%clk 0:00:17]}
40... Re1 {[%clk 0:00:05.9]} 41. Nc6 {[%clk 0:00:12.6]} 41... Rf1+ {[%clk
0:00:05.9]} 42. Ke4 {[%clk 0:00:10.6]} 42... Ne7 {[%clk 0:00:05.1]} 43. Rd8+
{[%clk 0:00:09.6]} 43... Nxd8 {[%clk 0:00:04]} 44. Nxd8 {[%clk 0:00:09.6]} 44...
Re1+ {[%clk 0:00:04.8]} 45. Kf3 {[%clk 0:00:08.4]} 45... Nf5 {[%clk 0:00:04.7]}
46. Ne6+ {[%clk 0:00:09.3]} 46... Ke7 {[%clk 0:00:04.4]} 47. c6 {[%clk
0:00:09.3]} 47... Rc2 {[%clk 0:00:03]} 48. c7 {[%clk 0:00:08.5]} 48... Rxc4
{[%clk 0:00:03.1]} 0-1

[Event "Early-Titled-Tuesday-Blitz-February-27-2024"]
[Site "Chess.com"]
[Date "2024.02.27"]
[Round "7"]
[White "Leebit02"]
[Black "Christ_is_alive"]
[Result "1-0"]
[WhiteElo "2543"]
[BlackElo "2301"]
[TimeControl "180+1"]
[EndTime "9:17:12 PST"]
[Termination "Leebit02 won on time"]

1. d4 {[%clk 0:02:59.9]} 1... Nf6 {[%clk 0:02:55.4]} 2. c4 {[%clk 0:03:00]} 2...
g6 {[%clk 0:02:55.3]} 3. h4 {[%clk 0:03:00.1]} 3... Bg7 {[%clk 0:02:44]} 4. Nc3
{[%clk 0:02:59.6]} 4... d6 {[%clk 0:02:42]} 5. e4 {[%clk 0:02:59.8]} 5... h5
{[%clk 0:02:27.7]} 6. Nf3 {[%clk 0:02:57.5]} 6... O-O {[%clk 0:02:23.2]} 7. Be2
{[%clk 0:02:55.9]} 7... e5 {[%clk 0:02:20.6]} 8. d5 {[%clk 0:02:46.4]} 8... Na6
{[%clk 0:02:18.8]} 9. Ng5 {[%clk 0:02:45.7]} 9... Nc5 {[%clk 0:02:15.3]} 10. Be3
{[%clk 0:02:45.4]} 10... a5 {[%clk 0:02:14.1]} 11. f3 {[%clk 0:02:44.9]} 11...
c6 {[%clk 0:02:09.4]} 12. g4 {[%clk 0:02:31.3]} 12... a4 {[%clk 0:01:57.3]} 13.
Rg1 {[%clk 0:02:24]} 13... Qa5 {[%clk 0:01:52.9]} 14. Qd2 {[%clk 0:02:19.2]}
14... a3 {[%clk 0:01:49.8]} 15. b3 {[%clk 0:02:19.1]} 15... Bd7 {[%clk
0:01:30.5]} 16. Rb1 {[%clk 0:02:06.2]} 16... Qb4 {[%clk 0:01:24.7]} 17. gxh5
{[%clk 0:02:02.8]} 17... Nxh5 {[%clk 0:01:24]} 18. Nd1 {[%clk 0:01:46.4]} 18...
Na6 {[%clk 0:01:14.5]} 19. Nf2 {[%clk 0:01:28.8]} 19... Nf4 {[%clk 0:01:06.2]}
20. Bf1 {[%clk 0:01:20.8]} 20... Rac8 {[%clk 0:00:54]} 21. Rd1 {[%clk
0:01:15.6]} 21... cxd5 {[%clk 0:00:52.4]} 22. cxd5 {[%clk 0:01:03.9]} 22... Rc2
{[%clk 0:00:53.3]} 23. Qxb4 {[%clk 0:00:49.1]} 23... Nxb4 {[%clk 0:00:54.2]} 24.
Bd2 {[%clk 0:00:43.9]} 24... Nxa2 {[%clk 0:00:32]} 25. Ra1 {[%clk 0:00:44.1]}
25... Ra8 {[%clk 0:00:29.8]} 26. Nd3 {[%clk 0:00:43.6]} 26... Nc3 {[%clk
0:00:26.8]} 27. Nxf4 {[%clk 0:00:35.6]} 27... exf4 {[%clk 0:00:27.7]} 28. Bd3
{[%clk 0:00:35.2]} 28... Rb2 {[%clk 0:00:20.4]} 29. h5 {[%clk 0:00:30.6]} 29...
a2 {[%clk 0:00:17]} 30. h6 {[%clk 0:00:26.4]} 30... Bd4 {[%clk 0:00:13.6]} 31.
h7+ {[%clk 0:00:22.5]} 31... Kg7 {[%clk 0:00:13.7]} 32. Rh1 {[%clk 0:00:23]}
32... Rb1+ {[%clk 0:00:08]} 33. Bxb1 {[%clk 0:00:20.5]} 33... axb1=Q+ {[%clk
0:00:08.9]} 34. Rxb1 {[%clk 0:00:20.2]} 34... Nxb1 {[%clk 0:00:09.8]} 35. h8=Q+
{[%clk 0:00:19.1]} 35... Rxh8 {[%clk 0:00:07.9]} 36. Rxh8 {[%clk 0:00:19.6]}
36... Kxh8 {[%clk 0:00:06.9]} 37. Bxf4 {[%clk 0:00:19]} 37... Kg7 {[%clk
0:00:02.9]} 38. Bxd6 {[%clk 0:00:18.6]} 38... Nc3 {[%clk 0:00:03.6]} 39. f4
{[%clk 0:00:17]} 39... Nb5 {[%clk 0:00:03.7]} 40. Bb8 {[%clk 0:00:12.8]} 40...
Bc5 {[%clk 0:00:02.7]} 41. e5 {[%clk 0:00:11]} 41... Be7 {[%clk 0:00:01.8]} 42.
Ne4 {[%clk 0:00:10.1]} 42... Bd8 {[%clk 0:00:01.7]} 43. Nc5 {[%clk 0:00:07.6]}
43... Bc8 {[%clk 0:00:02.3]} 44. d6 {[%clk 0:00:07]} 1-0

[Event "Early-Titled-Tuesday-Blitz-February-27-2024"]
[Site "Chess.com"]
[Date "2024.02.27"]
[Round "7"]
[White "VladimirBugayev"]
[Black "Fluffey"]
[Result "0-1"]
[WhiteElo "2250"]
[BlackElo "2511"]
[TimeControl "180+1"]
[EndTime "9:17:14 PST"]
[Termination "Fluffey won on time"]

1. e4 {[%clk 0:03:00.9]} 1... c5 {[%clk 0:02:59.9]} 2. Nc3 {[%clk 0:03:00.4]}
2... Nc6 {[%clk 0:03:00.3]} 3. Bb5 {[%clk 0:03:00.9]} 3... Nf6 {[%clk
0:02:59.7]} 4. d3 {[%clk 0:02:49.5]} 4... e5 {[%clk 0:02:56.5]} 5. f4 {[%clk
0:02:41.3]} 5... exf4 {[%clk 0:02:35.7]} 6. Bxf4 {[%clk 0:02:38]} 6... Nd4
{[%clk 0:02:35.8]} 7. Bc4 {[%clk 0:02:34.4]} 7... Be7 {[%clk 0:02:28.7]} 8. Nf3
{[%clk 0:02:32.3]} 8... Nxf3+ {[%clk 0:02:13]} 9. Qxf3 {[%clk 0:02:31.9]} 9...
d6 {[%clk 0:02:13.1]} 10. h3 {[%clk 0:02:20.4]} 10... Be6 {[%clk 0:02:12.2]} 11.
Bb5+ {[%clk 0:02:10.5]} 11... Bd7 {[%clk 0:02:00]} 12. O-O-O {[%clk 0:01:51.7]}
12... Bxb5 {[%clk 0:01:57.6]} 13. Nxb5 {[%clk 0:01:51.3]} 13... a6 {[%clk
0:01:46.6]} 14. Nc3 {[%clk 0:01:49.7]} 14... O-O {[%clk 0:01:46.7]} 15. g4
{[%clk 0:01:49.9]} 15... Nd7 {[%clk 0:01:36.4]} 16. h4 {[%clk 0:01:41.1]} 16...
Bf6 {[%clk 0:01:20.3]} 17. Nd5 {[%clk 0:01:37.1]} 17... Be5 {[%clk 0:01:19.1]}
18. g5 {[%clk 0:01:17.2]} 18... Qa5 {[%clk 0:01:15]} 19. Kb1 {[%clk 0:01:13.3]}
19... b5 {[%clk 0:00:41.5]} 20. h5 {[%clk 0:01:12.5]} 20... Rae8 {[%clk
0:00:27.6]} 21. Qg4 {[%clk 0:01:05.3]} 21... Re6 {[%clk 0:00:26]} 22. g6 {[%clk
0:00:51.5]} 22... Nf6 {[%clk 0:00:22.3]} 23. gxh7+ {[%clk 0:00:41]} 23... Kh8
{[%clk 0:00:16.3]} 24. Qf5 {[%clk 0:00:34.1]} 24... Bxf4 {[%clk 0:00:13.9]} 25.
Nxf4 {[%clk 0:00:33.6]} 25... Re5 {[%clk 0:00:14.1]} 26. Qh3 {[%clk 0:00:28.9]}
26... Kxh7 {[%clk 0:00:12.6]} 27. Ng6 {[%clk 0:00:26.3]} 27... fxg6 {[%clk
0:00:10.3]} 28. hxg6+ {[%clk 0:00:26.6]} 28... Kxg6 {[%clk 0:00:10.9]} 29. Rhg1+
{[%clk 0:00:22.2]} 29... Kf7 {[%clk 0:00:11]} 30. Qg3 {[%clk 0:00:20.3]} 30...
Rg8 {[%clk 0:00:11.3]} 31. Qg6+ {[%clk 0:00:18.9]} 31... Ke7 {[%clk 0:00:10.1]}
32. Rdf1 {[%clk 0:00:19.4]} 32... Re6 {[%clk 0:00:08.5]} 33. e5 {[%clk
0:00:17.9]} 33... dxe5 {[%clk 0:00:08.4]} 34. Qg2 {[%clk 0:00:17.6]} 34... Qc7
{[%clk 0:00:08.1]} 35. Rf5 {[%clk 0:00:16.7]} 35... e4 {[%clk 0:00:07.4]} 36.
Rgf1 {[%clk 0:00:16]} 36... e3 {[%clk 0:00:05.8]} 37. Qg5 {[%clk 0:00:15.6]}
37... e2 {[%clk 0:00:05.6]} 38. Re1 {[%clk 0:00:16]} 38... Qh2 {[%clk
0:00:04.9]} 39. Rxc5 {[%clk 0:00:15.6]} 39... Qf2 {[%clk 0:00:05.1]} 40. Rc7+
{[%clk 0:00:15.3]} 40... Kd8 {[%clk 0:00:04.9]} 41. Rc8+ {[%clk 0:00:07.6]}
41... Kxc8 {[%clk 0:00:04.9]} 42. Qc1 {[%clk 0:00:06.9]} 42... Rge8 {[%clk
0:00:04.6]} 43. a4 {[%clk 0:00:06.6]} 43... Nd5 {[%clk 0:00:04.9]} 44. axb5
{[%clk 0:00:06.1]} 44... axb5 {[%clk 0:00:05.1]} 45. Ka2 {[%clk 0:00:05.9]}
45... Ra6+ {[%clk 0:00:04.6]} 46. Kb3 {[%clk 0:00:05.9]} 46... Qf7 {[%clk
0:00:03.7]} 47. c4 {[%clk 0:00:05.5]} 47... Nc7 {[%clk 0:00:03]} 48. Qg5 {[%clk
0:00:04.2]} 48... bxc4+ {[%clk 0:00:03]} 49. dxc4 {[%clk 0:00:03.5]} 49... Rc6
{[%clk 0:00:03.2]} 50. Qg4+ {[%clk 0:00:03.5]} 50... Kb7 {[%clk 0:00:03.3]} 51.
Rxe2 {[%clk 0:00:03.5]} 51... Rxe2 {[%clk 0:00:03.4]} 52. Qxe2 {[%clk
0:00:03.4]} 52... Na6 {[%clk 0:00:03.7]} 53. Qg2 {[%clk 0:00:02.1]} 53... Qf6
{[%clk 0:00:04.1]} 0-1